bitfinex/quotes_SOLUSD_20240918
["timestamp","ask_amount","ask_price","bid_price","bid_amount"]
[1726682801143,0.12549,131.7,131.6,0.5115208]
[1726682801319,0.12549,131.72,131.6,0.5115208]
[1726682801523,0.12549,131.72,131.61,7.5977]
[1726682801524,7.5952,131.67,131.61,7.5977]
[1726682801839,0.25098,131.7,131.53,1.51898097]
[1726682802033,0.5115208,131.72,131.49,10.0]
[1726682802339,0.5115208,131.72,131.51,60.0]
[1726682802340,18.9814,131.71,131.51,60.0]
[1726682802512,0.5115208,131.72,131.5,1.73818576]
[1726682802513,0.5115208,131.72,131.57,50.0]
[1726682802714,0.5115208,131.72,131.71,26.5734]
[1726682802917,0.5115208,131.72,131.67,37.9725]
[1726682802918,7.593,131.7,131.58,1.73712896]
[1726682803144,0.5115208,131.72,131.62,7.597]
[1726682803145,7.5939,131.69,131.62,7.597]
[1726682803434,0.5115208,131.72,131.51,0.1360472]
[1726682803618,18.9854,131.69,131.56,19.0013]
[1726682803818,7.5958,131.66,131.6,7.5985]
[1726682804021,18.9854,131.69,131.52,38.0154]
[1726682804324,38.9827,131.7,131.61,7.598]
[1726682804526,38.9827,131.7,131.53,3.25752031]
[1726682804527,20.0,131.7,131.53,1.73778931]
[1726682804729,7.5936,131.69,131.63,7.5969]
[1726682804934,20.5115208,131.72,131.62,7.5975]
[1726682805237,20.5115208,131.72,131.58,18.9996]
[1726682805238,20.0,131.7,131.58,18.9996]
[1726682805440,20.0,131.7,131.53,1.73778931]
[1726682805441,20.0,131.7,131.55,19.004]
[1726682805738,7.5982,131.61,131.55,19.004]
[1726682806039,18.9869,131.67,131.52,38.0152]
[1726682806226,7.5987,131.61,131.55,19.004]
[1726682806426,19.36747,131.65,131.53,7.6028]
[1726682806632,20.0,131.64,131.54,7.6022]
[1726682806823,20.0,131.64,131.48,45.97715143]
[1726682806824,0.37647,131.61,131.48,19.0128]
[1726682807029,0.37647,131.63,131.46,1.32427839]
[1726682807228,0.37647,131.63,131.45,0.5115208]
[1726682807427,7.6052,131.49,131.45,0.5115208]
[1726682807641,19.0045,131.55,131.45,0.5115208]
[1726682807835,0.12549,131.53,131.45,0.5115208]
[1726682808042,7.6045,131.5,131.45,0.5115208]
[1726682808241,20.37647,131.57,131.45,0.5115208]
[1726682808443,7.6031,131.53,131.47,7.606]
[1726682808639,7.6033,131.53,131.45,0.5115208]
[1726682808824,0.12549,131.55,131.45,0.5115208]
[1726682809018,0.25098,131.55,131.45,0.5115208]
[1726682809223,0.12549,131.54,131.45,0.5115208]
[1726682809442,20.25098,131.49,131.45,0.5115208]
[1726682809645,7.6068,131.46,131.45,0.5115208]
[1726682809826,7.73229,131.46,131.45,0.5115208]
[1726682810018,7.6068,131.46,131.45,0.5115208]
[1726682810325,7.6068,131.46,131.37,0.5115208]
[1726682810634,19.016,131.47,131.37,0.5115208]
[1726682810635,0.12549,131.47,131.37,0.5115208]
[1726682810835,0.12549,131.46,131.37,0.5115208]
[1726682811239,0.12549,131.43,131.37,0.5115208]
[1726682811540,7.6115,131.38,131.37,0.5115208]
[1726682812124,7.86248,131.38,131.37,0.5115208]
[1726682812332,26.89118,131.38,131.37,0.5115208]
[1726682813139,27.01667,131.38,131.37,0.5115208]
[1726682813323,47.01667,131.38,131.37,0.5115208]
[1726682813531,7.6115,131.38,131.37,0.5115208]
[1726682813919,7.98797,131.38,131.37,0.5115208]
[1726682814126,7.98797,131.38,131.29,0.5115208]
[1726682814127,0.25098,131.37,131.29,0.5115208]
[1726682814343,7.6144,131.33,131.29,0.5115208]
[1726682814542,0.25098,131.37,131.29,0.5115208]
[1726682814751,7.6132,131.35,131.29,0.5115208]
[1726682815058,7.6126,131.37,131.31,7.6153]
[1726682815222,20.37647,131.4,131.29,0.5115208]
[1726682815641,7.614,131.34,131.29,8.1282208]
[1726682815954,7.97903797,131.44,131.29,0.5115208]
[1726682816122,7.6092,131.42,131.3,1.52292127]
[1726682816452,7.6079,131.45,131.39,7.6107]
[1726682816750,7.608,131.45,131.38,7.6114]
[1726682816932,7.608,131.45,131.29,0.5115208]
[1726682816933,7.6075,131.45,131.39,20.5487518]
[1726682817245,19.0113,131.51,131.4,7.6103]
[1726682817431,7.608,131.44,131.39,19.027]
[1726682817638,19.0113,131.51,131.39,19.027]
[1726682817639,7.6074,131.46,131.39,26.6378]
[1726682817957,7.6045,131.51,131.44,7.6075]
[1726682818140,8.34785239,131.52,131.38,38.056]
[1726682818141,7.6047,131.5,131.45,7.6073]
[1726682818352,19.0083,131.53,131.43,19.02]
[1726682818551,7.6051,131.49,131.43,19.02]
[1726682818749,7.6051,131.49,131.44,7.6079]
[1726682818951,0.5115208,131.56,131.46,7.6068]
[1726682819257,0.5115208,131.56,131.39,0.25098]
[1726682819258,19.0054,131.55,131.39,0.25098]
[1726682819458,41.8454,131.55,131.42,19.0215]
[1726682819651,19.0087,131.52,131.42,19.0215]
[1726682819855,7.6057,131.48,131.42,19.0215]
[1726682820049,7.604,131.51,131.45,7.6069]
[1726682820263,7.6027,131.54,131.48,7.6056]
[1726682820563,7.6029,131.53,131.47,19.0155]
[1726682820937,0.5115208,131.56,131.39,0.12549]
[1726682821136,19.0043,131.55,131.45,19.0172]
[1726682821391,7.6039,131.52,131.47,7.6062]
[1726682821577,0.5115208,131.56,131.4,10.0]
[1726682821734,0.5115208,131.56,131.42,10.0]
[1726682822060,0.5115208,131.56,131.46,38.0331]
[1726682822261,0.5115208,131.56,131.49,19.0126]
[1726682822438,0.5115208,131.56,131.53,7.6023]
[1726682822640,0.5115208,131.56,131.51,19.0086]
[1726682823258,8.1126208,131.56,131.51,26.6125]
[1726682823462,0.5115208,131.56,131.48,19.0139]
[1726682823939,0.5115208,131.56,131.32,10.0]
[1726682824140,0.5115208,131.56,131.41,19.024]
[1726682824364,0.12549,131.52,131.42,7.6091]
[1726682824571,7.6075,131.45,131.4,7.6098]
[1726682824746,0.25098,131.55,131.43,19.0202]
[1726682824940,7.6052,131.49,131.44,7.6075]
[1726682825164,0.12549,131.55,131.45,19.0175]
[1726682825357,0.5115208,131.56,131.46,1.52088484]
[1726682825559,0.5115208,131.56,131.47,19.0143]
[1726682825949,0.5115208,131.56,131.51,7.6039]
[1726682825950,8.1131208,131.56,131.51,7.6039]
[1726682826148,8.1131208,131.56,131.49,19.0118]
[1726682826149,0.5115208,131.56,131.49,19.0118]
[1726682826467,0.5115208,131.56,131.5,7.6039]
[1726682826662,0.5115208,131.56,131.45,0.25098]
[1726682826663,0.5115208,131.56,131.51,7.6039]
[1726682826868,0.5115208,131.56,131.44,7.6078]
[1726682826869,7.605,131.5,131.44,7.6078]
[1726682827049,0.5115208,131.56,131.35,60.0]
[1726682827371,0.5115208,131.56,131.35,108.47560968]
[1726682827860,7.6056,131.49,131.31,108.47560968]
[1726682828064,7.6069,131.46,131.31,50.0]
[1726682828270,19.0139,131.49,131.29,0.5115208]
[1726682828442,0.12549,131.53,131.33,60.0]
[1726682828646,20.0,131.55,131.44,19.0195]
[1726682828848,39.0051,131.55,131.44,19.0195]
[1726682829048,19.0051,131.55,131.44,19.0195]
[1726682829274,7.6027,131.54,131.49,7.6049]
[1726682829443,7.6028,131.53,131.48,26.6187]
[1726682829646,0.5115208,131.56,131.49,1.52059288]
[1726682829861,0.5115208,131.56,131.38,50.0]
[1726682829862,0.5115208,131.56,131.38,38.0563]
[1726682830062,7.6055,131.49,131.44,26.6273]
[1726682830366,7.6021,131.55,131.39,50.0]
[1726682830568,0.5115208,131.56,131.5,7.6045]
[1726682830772,0.5115208,131.56,131.52,7.6029]
[1726682830944,0.5115208,131.56,131.5,19.0104]
[1726682831145,0.5115208,131.56,131.52,7.603]
[1726682831346,0.5115208,131.56,131.53,1.52004896]
[1726682831573,0.5115208,131.56,131.51,19.13509]
[1726682831771,0.5115208,131.56,131.51,19.0096]
[1726682831975,8.1131208,131.56,131.51,19.0096]
[1726682832148,8.1131208,131.56,131.45,38.0344]
[1726682832149,7.6035,131.52,131.45,38.0344]
[1726682832344,0.5115208,131.56,131.47,19.0147]
[1726682832551,0.5115208,131.56,131.46,1.52048043]
[1726682832773,0.5115208,131.56,131.45,38.0344]
[1726682832774,0.5115208,131.56,131.47,1.51989786]
[1726682832976,0.5115208,131.56,131.55,7.6016]
[1726682833361,0.5115208,131.56,131.55,9.37210238]
[1726682833563,0.5115208,131.56,131.55,31.754954]
[1726682833766,0.5115208,131.56,131.55,7.6016]
[1726682833951,0.5115208,131.56,131.53,19.0061]
[1726682834157,0.5115208,131.56,131.54,7.6021]
[1726682834480,0.5115208,131.56,131.53,19.0061]
[1726682834481,0.5115208,131.56,131.55,7.72709]
[1726682834862,0.5115208,131.56,131.55,7.97807]
[1726682835066,0.5115208,131.56,131.55,31.754954]
[1726682835268,0.5115208,131.56,131.55,7.85258]
[1726682835456,0.5115208,131.56,131.55,31.754954]
[1726682835656,0.5115208,131.56,131.55,7.72709]
[1726682835862,0.5115208,131.56,131.53,26.6083]
[1726682836060,0.5115208,131.56,131.38,98.47560968]
[1726682836258,0.5115208,131.56,131.52,19.0083]
[1726682836478,20.0,131.55,131.32,67.95511522]
[1726682836689,7.6039,131.51,131.45,7.6069]
[1726682836863,0.25098,131.54,131.42,19.0228]
[1726682837059,0.12549,131.54,131.39,38.0533]
[1726682837258,19.0086,131.52,131.35,38.0659]
[1726682837454,0.12549,131.54,131.35,38.0659]
[1726682837455,7.6068,131.47,131.35,38.0659]
[1726682837686,7.6071,131.46,131.39,19.026]
[1726682837870,7.6071,131.46,131.35,38.0659]
[1726682837871,19.0125,131.5,131.38,7.6109]
[1726682838066,19.0125,131.5,131.31,1.32538673]
[1726682838067,0.12549,131.49,131.36,26.6442]
[1726682838271,7.609,131.43,131.37,7.6119]
[1726682838566,7.6069,131.46,131.38,19.0275]
[1726682838772,19.0129,131.49,131.39,7.6104]
[1726682838977,19.0169,131.47,131.33,38.071]
[1726682839166,19.0169,131.47,131.37,19.0291]
[1726682839785,19.0169,131.47,131.31,1.32538673]
[1726682839786,19.0229,131.43,131.31,1.32538673]
[1726682839996,0.12549,131.44,131.29,0.5115208]
[1726682840284,19.0273,131.39,131.29,0.5115208]
[1726682840586,7.6138,131.34,131.29,0.5115208]
[1726682840888,19.0319,131.36,131.29,0.5115208]
[1726682841182,0.12549,131.4,131.29,0.5115208]
[1726682841396,7.6149,131.32,131.29,0.5115208]
[1726682841566,19.0306,131.37,131.29,0.5115208]
[1726682842274,0.12549,131.38,131.29,0.5115208]
[1726682842275,7.6161,131.3,131.29,0.5115208]
[1726682842987,10.0,131.39,131.29,0.5115208]
[1726682842988,8.21424416,131.43,131.29,0.5115208]
[1726682843157,0.12549,131.41,131.3,19.0403]
[1726682843563,8.21424416,131.43,131.3,19.0403]
[1726682843564,7.6114,131.39,131.31,1.52251425]
[1726682843770,8.21424416,131.43,131.37,7.612]
[1726682843973,10.0,131.52,131.29,0.5115208]
[1726682844172,38.0397,131.45,131.31,19.0376]
[1726682844360,38.0397,131.45,131.29,0.5115208]
[1726682844361,19.0243,131.42,131.29,0.5115208]
[1726682844561,57.0583,131.45,131.29,0.5115208]
[1726682844763,7.6098,131.41,131.36,7.6126]
[1726682844979,19.0186,131.45,131.37,7.6119]
[1726682844980,7.6091,131.42,131.37,7.6119]
[1726682845281,7.6091,131.42,131.29,0.5115208]
[1726682845282,7.608,131.44,131.36,19.0315]
[1726682845487,7.6083,131.44,131.39,7.6107]
[1726682845685,7.6074,131.46,131.4,7.6103]
[1726682845873,8.23019728,131.55,131.38,19.0273]
[1726682846078,7.6063,131.47,131.42,7.609]
[1726682846378,19.0086,131.52,131.35,0.12549]
[1726682846379,19.0086,131.52,131.35,24.153354]
[1726682846568,19.0086,131.52,131.41,7.6097]
[1726682846764,7.6052,131.49,131.35,24.153354]
[1726682846968,7.6045,131.5,131.45,7.6073]
[1726682847165,27.23449728,131.55,131.42,19.0217]
[1726682847380,27.23449728,131.55,131.43,0.12549]
[1726682847686,27.23449728,131.55,131.41,0.12549]
[1726682847687,18.9996,131.59,131.48,7.6055]
[1726682847875,18.9996,131.59,131.49,7.605]
[1726682848070,18.9941,131.62,131.48,19.0142]
[1726682848266,7.6005,131.57,131.51,19.0098]
[1726682848685,18.9941,131.62,131.51,19.0098]
[1726682848866,0.5115208,131.64,131.49,7.6046]
[1726682848867,18.9982,131.6,131.49,7.6046]
[1726682849401,7.6022,131.54,131.47,19.0143]
[1726682849686,19.0011,131.58,131.47,19.0143]
[1726682849885,7.602,131.55,131.47,19.0143]
[1726682850083,7.6028,131.53,131.48,7.6056]
[1726682850287,7.6036,131.52,131.47,7.6062]
[1726682850594,7.6048,131.5,131.44,7.6077]
[1726682850768,7.604,131.51,131.43,19.0212]
[1726682850964,19.0048,131.55,131.2,3.03649138]
[1726682850965,20.0,131.52,131.4,19.0257]
[1726682851172,20.0,131.52,131.43,7.6081]
[1726682851173,7.6051,131.49,131.43,7.6081]
[1726682851410,7.6047,131.5,131.42,19.0216]
[1726682851591,7.6047,131.5,131.36,38.0619]
[1726682851592,0.12549,131.53,131.46,7.6068]
[1726682851772,0.12549,131.53,131.45,19.0184]
[1726682851773,7.605,131.5,131.45,19.0184]
[1726682851980,57.0052,131.57,131.46,1.52096296]
[1726682852164,0.12549,131.55,131.46,7.6068]
[1726682852371,20.5115208,131.56,131.45,19.0184]
[1726682852593,7.6034,131.52,131.45,19.0184]
[1726682852974,7.6046,131.5,131.45,19.0184]
[1726682853174,7.6034,131.52,131.45,19.0184]
[1726682853373,7.6035,131.52,131.45,19.0184]
[1726682853572,0.5115208,131.56,131.48,19.013]
[1726682853883,0.5115208,131.56,131.52,7.6034]
[1726682854074,0.5115208,131.56,131.5,19.0104]
[1726682854275,0.5115208,131.56,131.52,19.0075]
[1726682854781,0.5115208,131.56,131.39,38.0532]
[1726682854782,19.0065,131.54,131.39,38.0532]
[1726682855085,7.6046,131.5,131.44,26.6269]
[1726682855286,7.6062,131.48,131.42,7.6091]
[1726682855492,22.84,131.52,131.41,19.0244]
[1726682855797,20.37647,131.55,131.35,38.0638]
[1726682855995,19.0076,131.53,131.43,19.0203]
[1726682856292,57.5206208,131.56,131.47,7.6062]
[1726682856597,7.604,131.51,131.45,19.0173]
[1726682856796,19.5146208,131.56,131.45,19.0173]
[1726682856983,7.6036,131.52,131.45,19.0173]
[1726682857184,19.5146208,131.56,131.45,19.0173]
[1726682857387,7.6041,131.51,131.46,7.6068]
[1726682857703,7.6041,131.51,131.47,7.6062]
[1726682858080,7.6034,131.52,131.48,7.6056]
[1726682858293,7.6039,131.51,131.45,19.0173]
[1726682858495,19.0064,131.54,131.45,19.0173]
[1726682858690,7.604,131.51,131.46,7.6067]
[1726682858912,0.5115208,131.56,131.45,19.0173]
[1726682859199,7.6027,131.54,131.47,19.0149]
[1726682859494,7.6027,131.54,131.42,38.043]
[1726682859495,8.1127208,131.56,131.51,7.6038]
[1726682859710,7.6029,131.53,131.49,19.0118]
[1726682860011,7.6023,131.54,131.49,26.6169]
[1726682860180,0.5115208,131.56,131.51,19.0089]
[1726682860368,0.5115208,131.56,131.52,7.6033]
[1726682860569,0.5115208,131.56,131.54,7.6021]
[1726682860791,0.5115208,131.56,131.53,26.6087]
[1726682860989,0.5115208,131.56,131.5,19.0105]
[1726682861481,0.5115208,131.56,131.53,7.6026]
[1726682861684,0.5115208,131.56,131.52,19.0077]
[1726682861993,0.5115208,131.56,131.42,38.043]
[1726682862198,0.5115208,131.56,131.48,0.12549]
[1726682862395,0.5115208,131.56,131.51,19.0087]
[1726682862809,0.5115208,131.56,131.55,7.6016]
[1726682863178,0.5115208,131.56,131.53,19.0062]
[1726682863370,0.5115208,131.56,131.51,7.6038]
[1726682863371,8.1126208,131.56,131.51,7.6038]
[1726682863571,7.6017,131.55,131.5,26.6149]
[1726682863795,0.5115208,131.56,131.5,19.0105]
[1726682864012,0.5115208,131.56,131.47,19.0148]
[1726682864176,7.6023,131.54,131.47,19.0148]
[1726682864379,7.6018,131.55,131.5,7.6044]
[1726682864593,19.0024,131.57,131.48,7.6056]
[1726682864594,7.6038,131.52,131.48,7.6056]
[1726682864784,0.404394,131.54,131.45,38.0367]
[1726682864985,0.404394,131.54,131.5,19.0103]
[1726682865403,0.404394,131.54,131.52,19.0078]
[1726682865705,0.404394,131.54,131.45,38.0367]
[1726682865893,0.404394,131.54,131.49,7.6046]
[1726682866206,0.404394,131.54,131.51,7.6038]
[1726682866433,0.404394,131.54,131.51,7.6039]
[1726682866574,0.404394,131.54,131.49,7.6051]
[1726682866780,8.006594,131.54,131.5,7.6044]
[1726682866997,0.404394,131.54,131.49,19.0121]
[1726682867196,0.404394,131.54,131.51,19.0093]
[1726682867382,0.404394,131.54,131.51,26.6131]
[1726682867587,0.404394,131.54,131.48,19.0133]
[1726682867891,0.404394,131.54,131.5,26.6151]
[1726682868202,8.006794,131.54,131.5,19.0107]
[1726682868505,7.6044,131.51,131.47,26.6217]
[1726682868804,7.6029,131.53,131.47,19.0155]
[1726682868998,0.404394,131.54,131.47,38.0289]
[1726682869203,8.006694,131.54,131.4,10.0]
[1726682869410,0.404394,131.54,131.51,19.0091]
[1726682869581,0.404394,131.54,131.47,19.0143]
[1726682869786,0.404394,131.54,131.44,38.0372]
[1726682869787,8.006794,131.54,131.44,38.0372]
[1726682870085,7.006794,131.54,131.49,26.6171]
[1726682870284,19.002,131.57,131.49,26.6174]
[1726682870587,7.6009,131.57,131.48,38.0265]
[1726682870909,7.6039,131.52,131.47,7.6061]
[1726682871106,0.4491098,131.6,131.48,1.52062632]
[1726682871429,0.4491098,131.6,131.39,48.47560968]
[1726682871430,7.6041,131.51,131.35,48.47560968]
[1726682871578,19.0052,131.55,131.45,19.0184]
[1726682871783,7.6082,131.44,131.4,7.6099]
[1726682871996,19.0134,131.49,131.4,7.6099]
[1726682872194,19.0134,131.49,131.41,19.0239]
[1726682872396,7.6064,131.47,131.42,7.609]
[1726682872601,10.14040188,131.53,131.43,7.6085]
[1726682872602,7.6057,131.48,131.43,7.6085]
[1726682872916,10.14040188,131.53,131.36,38.5122098]
[1726682872917,48.15490188,131.53,131.36,38.5122098]
[1726682873090,39.38637,131.52,131.4,19.0251]
[1726682873403,7.6069,131.46,131.4,19.0251]
[1726682873612,7.6063,131.47,131.42,7.6091]
[1726682873908,39.38637,131.52,131.36,38.5122098]
[1726682873909,7.609,131.43,131.38,7.611]
[1726682874084,20.12549,131.47,131.37,19.0298]
[1726682874287,7.6115,131.38,131.36,0.4491098]
[1726682874512,7.6104,131.4,131.36,0.4491098]
[1726682874810,7.6114,131.39,131.36,0.4491098]
[1726682875308,7.6106,131.4,131.36,0.4491098]
[1726682875807,0.25098,131.46,131.37,7.612]
[1726682875808,7.6093,131.42,131.37,7.612]
[1726682876105,0.12549,131.46,131.37,1.52200938]
[1726682876106,0.12549,131.45,131.37,1.52200938]
[1726682876290,7.6085,131.44,131.38,7.6114]
[1726682876494,7.6085,131.44,131.36,0.4491098]
[1726682876495,19.0187,131.45,131.36,0.4491098]
[1726682876800,7.611,131.39,131.36,0.4491098]
[1726682877306,20.25098,131.44,131.36,0.4491098]
[1726682877307,7.6102,131.41,131.36,0.4491098]
[1726682877610,19.0226,131.43,131.36,0.4491098]
[1726682877823,0.12549,131.41,131.36,0.4491098]
[1726682878119,7.6115,131.38,131.36,0.4491098]
[1726682878491,30.4515,131.38,131.36,0.4491098]
[1726682878806,7.612,131.37,131.36,0.4491098]
[1726682879901,7.612,131.37,131.29,0.4491098]
[1726682879902,20.25098,131.37,131.29,0.4491098]
[1726682880105,0.25098,131.37,131.29,0.4491098]
[1726682880314,20.25098,131.37,131.29,0.4491098]
[1726682880509,19.034,131.35,131.29,0.4491098]
[1726682881210,20.25098,131.34,131.29,0.4491098]
[1726682881515,20.25098,131.34,131.17,19.059]
[1726682881516,19.0429,131.29,131.17,19.059]
[1726682881710,7.6202,131.23,131.17,19.059]
[1726682882109,0.12549,131.27,131.11,1.32867089]
[1726682882110,7.6215,131.21,131.14,7.6249]
[1726682882411,7.6215,131.21,131.13,19.0639]
[1726682882412,7.6227,131.19,131.13,19.0639]
[1726682882727,19.0463,131.26,130.97,50.75190393]
[1726682882728,43.21647,131.22,131.05,1.32950491]
[1726682883030,43.21647,131.22,130.98,60.0]
[1726682883031,27.6229,131.19,131.12,7.6264]
[1726682883198,27.6229,131.19,131.1,0.3684025]
[1726682883199,0.25098,131.18,131.1,0.3684025]
[1726682883398,0.12549,131.17,131.1,0.3684025]
[1726682883723,7.6267,131.12,131.1,0.3684025]
[1726682883923,0.12549,131.17,131.1,0.3684025]
[1726682884304,0.12549,131.17,131.02,0.5129547]
[1726682884305,0.12549,131.15,131.02,0.5129547]
[1726682884503,0.25098,131.14,131.02,0.5129547]
[1726682884702,0.25098,131.14,130.94,1.84359107]
[1726682884703,0.25098,131.12,130.94,19.6045547]
[1726682884919,0.12549,131.09,130.94,19.6045547]
[1726682885233,0.12549,131.07,130.94,19.6045547]
[1726682885407,0.12549,131.07,130.94,0.5129547]
[1726682885408,0.12549,131.06,130.94,0.5129547]
[1726682885604,0.12549,131.02,130.94,0.5129547]
[1726682885825,0.12549,131.02,130.86,0.5129547]
[1726682885826,0.12549,131.0,130.86,0.5129547]
[1726682886030,0.12549,130.99,130.9,7.6393]
[1726682886211,20.0,131.03,130.91,1.52734426]
[1726682886420,20.0,131.04,130.94,19.0914]
[1726682886623,0.25098,131.03,130.91,7.6385]
[1726682886830,0.12549,131.02,130.86,0.5129547]
[1726682887004,0.12549,131.02,130.86,19.6171547]
[1726682887535,0.12549,131.02,130.87,7.641]
[1726682887728,0.12549,131.0,130.9,7.6393]
[1726682887916,0.12549,131.0,130.86,19.6171547]
[1726682888120,0.12549,131.0,130.89,19.0989]
[1726682888315,0.12549,131.0,130.89,26.7386]
[1726682888510,0.12549,130.98,130.86,0.5129547]
[1726682888832,20.37647,130.96,130.86,0.5129547]
[1726682889035,20.37647,130.94,130.86,0.5129547]
[1726682889236,20.25098,130.94,130.86,0.5129547]
[1726682889534,0.12549,130.93,130.86,0.5129547]
[1726682890126,38.4549123,130.98,130.86,0.5129547]
[1726682890127,50.0,130.97,130.86,0.5129547]
[1726682890332,18.4549123,130.98,130.86,0.5129547]
[1726682890333,50.0,130.94,130.86,0.5129547]
[1726682890633,8.4549123,130.98,130.78,0.5129547]
[1726682890634,60.0,130.92,130.78,0.5129547]
[1726682890831,60.0,130.94,130.78,0.5129547]
[1726682891016,59.46367965,130.97,130.8,19.112]
[1726682891214,20.37647,130.96,130.8,19.112]
[1726682891415,50.37647,130.96,130.82,7.6439]
[1726682891610,9.46367965,130.97,130.83,19.1077]
[1726682891820,9.46367965,130.97,130.84,7.6428]
[1726682892037,50.0,130.95,130.79,19.1142]
[1726682892235,9.46367965,130.97,130.83,7.6433]
[1726682892409,9.46367965,130.97,130.82,19.1092]
[1726682892614,8.4549123,130.98,130.82,19.1092]
[1726682892908,8.4549123,130.98,130.82,50.75190393]
[1726682893124,8.4549123,130.98,130.88,19.1001]
[1726682893309,12.8169,130.99,130.88,50.75190393]
[1726682893515,12.8169,130.99,130.94,26.7284]
[1726682893716,12.8169,130.99,130.95,7.6364]
[1726682893921,12.8169,130.99,130.93,7.6376]
[1726682894126,12.8169,130.99,130.86,19.1037]
[1726682894316,22.28057965,130.99,130.86,19.1037]
[1726682894525,35.09747965,130.99,130.89,19.0994]
[1726682894727,12.8169,130.99,130.92,7.6381]
[1726682894913,12.8169,130.99,130.92,19.0946]
[1726682895313,12.8169,130.99,130.9,7.639]
[1726682895509,12.8169,130.99,130.81,38.2233]
[1726682896031,12.8169,130.99,130.81,0.12549]
[1726682896032,20.0,130.98,130.81,0.12549]
[1726682896219,20.0,130.98,130.78,50.5129547]
[1726682896532,0.37647,130.97,130.78,50.5129547]
[1726682896709,0.37647,130.95,130.78,50.5129547]
[1726682896913,0.37647,130.95,130.83,26.7514]
[1726682897230,0.37647,130.95,130.82,19.1096]
[1726682897625,0.37647,130.95,130.78,69.6281547]
[1726682897832,0.37647,130.93,130.79,7.6457]
[1726682898139,0.37647,130.91,130.8,7.645]
[1726682898340,0.37647,130.91,130.81,7.6444]
[1726682898539,0.37647,130.91,130.79,19.1141]
[1726682898540,23.21647,130.91,130.79,19.1141]
[1726682898713,0.37647,130.89,130.78,58.1592547]
[1726682898913,7.6423,130.85,130.78,50.5129547]
[1726682899116,0.25098,130.84,130.78,50.5129547]
[1726682899314,0.12549,130.82,130.78,50.5129547]
[1726682899510,7.6447,130.81,130.78,50.5129547]
[1726682899728,19.7241,130.85,130.78,50.5129547]
[1726682899932,0.25098,130.84,130.78,69.6284547]
[1726682900131,12.0814,130.85,130.78,69.6284547]
[1726682900321,0.25098,130.84,130.78,69.6284547]
[1726682900519,12.0814,130.85,130.78,77.2743547]
[1726682900725,19.7238,130.85,130.79,7.6457]
[1726682900941,7.6388,130.92,130.81,19.1111]
[1726682901123,7.6411,130.88,130.82,7.6439]
[1726682901324,50.0,130.94,130.78,50.5129547]
[1726682901522,7.6429,130.84,130.78,58.1593547]
[1726682901833,22.84,130.9,130.78,50.5129547]
[1726682902021,19.1064,130.85,130.78,50.5129547]
[1726682902220,38.2024,130.89,130.68,7.6518]
[1726682902221,0.12549,130.79,130.68,7.6518]
[1726682902425,0.25098,130.78,130.68,26.7813]
[1726682902619,7.6488,130.74,130.68,19.1295]
[1726682902825,0.12549,130.8,130.71,19.1261]
[1726682903120,12.712,130.82,130.74,19.1217]
[1726682903322,20.25098,130.83,130.69,69.88010393]
[1726682903522,7.6467,130.78,130.72,7.6498]
[1726682903721,0.12549,130.82,130.74,7.6487]
[1726682903722,7.6454,130.8,130.74,7.6487]
[1726682904025,31.9275,130.88,130.74,19.1204]
[1726682904237,7.6417,130.87,130.82,7.644]
[1726682904436,7.64,130.89,130.81,1.52874861]
[1726682904636,8.67784604,130.93,130.78,50.75190393]
[1726682904819,8.67784604,130.93,130.81,19.1113]
[1726682905228,33.0545547,130.98,130.84,19.1071]
[1726682905639,33.0545547,130.98,130.81,50.75190393]
[1726682905640,83.0545547,130.98,130.78,50.75190393]
[1726682905846,72.84,130.94,130.78,19.1159]
[1726682906050,7.6441,130.82,130.76,7.647]
[1726682906231,5.77212,130.96,130.74,50.75190393]